[Event "*** Titled Tuesday Blitz"]
[Site "Chess.com"]
[Date "2020.10.20"]
[Round "3"]
[White "Sokoloco"]
[Black "Tooweak2slow03"]
[Result "0-1"]
[WhiteElo "2493"]
[BlackElo "2778"]
[TimeControl "180+1"]
[EndTime "10:28:49 PDT"]
[Termination "Tooweak2slow03 won on time"]

1. b3 {[%clk 0:03:00.9]} 1... e6 {[%clk 0:03:00.8]} 2. Bb2 {[%clk 0:03:01.1]}
2... b6 {[%clk 0:03:00.8]} 3. e3 {[%clk 0:03:00.6]} 3... Bb7 {[%clk 0:03:01.7]}
4. Nf3 {[%clk 0:03:01]} 4... f5 {[%clk 0:03:01.4]} 5. d4 {[%clk 0:02:57.1]} 5...
Nf6 {[%clk 0:02:58.8]} 6. c4 {[%clk 0:02:56.9]} 6... Bb4+ {[%clk 0:02:58.6]} 7.
Nbd2 {[%clk 0:02:50.5]} 7... O-O {[%clk 0:02:58.4]} 8. Bd3 {[%clk 0:02:47.4]}
8... Qe8 {[%clk 0:02:55.8]} 9. a3 {[%clk 0:02:38.1]} 9... Bxd2+ {[%clk
0:02:51.3]} 10. Qxd2 {[%clk 0:02:23]} 10... d6 {[%clk 0:02:52.2]} 11. O-O-O
{[%clk 0:01:52.1]} 11... c5 {[%clk 0:02:49.9]} 12. dxc5 {[%clk 0:01:42.4]} 12...
bxc5 {[%clk 0:02:50.8]} 13. Rhg1 {[%clk 0:01:31.5]} 13... a5 {[%clk 0:02:49.1]}
14. Qc3 {[%clk 0:01:28.4]} 14... a4 {[%clk 0:02:47.9]} 15. Nd2 {[%clk
0:01:20.3]} 15... Nc6 {[%clk 0:02:46.9]} 16. g4 {[%clk 0:01:17.3]} 16... fxg4
{[%clk 0:02:47]} 17. Rxg4 {[%clk 0:01:16]} 17... e5 {[%clk 0:02:46.2]} 18. Rg5
{[%clk 0:01:12.1]} 18... Qe7 {[%clk 0:02:39.5]} 19. Rdg1 {[%clk 0:01:11.4]}
19... g6 {[%clk 0:02:29.6]} 20. Bxg6 {[%clk 0:01:05.5]} 20... hxg6 {[%clk
0:02:30.5]} 21. Rxg6+ {[%clk 0:01:06.4]} 21... Kh8 {[%clk 0:02:29.7]} 22. f4
{[%clk 0:01:01.7]} 22... Qh7 {[%clk 0:02:27.4]} 23. Nf3 {[%clk 0:00:56.7]} 23...
Na5 {[%clk 0:02:24.4]} 24. fxe5 {[%clk 0:00:42.1]} 24... Bxf3 {[%clk 0:02:12.8]}
25. exf6 {[%clk 0:00:35.1]} 25... Nxb3+ {[%clk 0:02:05.2]} 26. Kb1 {[%clk
0:00:33]} 26... Rf7 {[%clk 0:01:52]} 27. Ka2 {[%clk 0:00:32.8]} 27... Qxh2
{[%clk 0:01:42]} 28. Rg7 {[%clk 0:00:22.8]} 28... d5 {[%clk 0:01:36.1]} 29. Rxf7
{[%clk 0:00:19.2]} 29... Qxg1 {[%clk 0:01:35.8]} 30. Ra7 {[%clk 0:00:14.5]}
30... d4 {[%clk 0:01:32]} 31. exd4 {[%clk 0:00:13.1]} 31... Rxa7 {[%clk
0:01:25.9]} 32. Qxf3 {[%clk 0:00:13.1]} 32... Nc1+ {[%clk 0:01:24.2]} 33. Bxc1
{[%clk 0:00:09.8]} 33... Qxc1 {[%clk 0:01:24.7]} 34. Qh5+ {[%clk 0:00:09.5]}
34... Kg8 {[%clk 0:01:21.9]} 35. Qe8+ {[%clk 0:00:09.7]} 35... Kh7 {[%clk
0:01:20.7]} 36. Qe4+ {[%clk 0:00:05.1]} 36... Kh6 {[%clk 0:01:17.7]} 37. Qh4+
{[%clk 0:00:05.3]} 37... Kg6 {[%clk 0:01:17.3]} 38. Qg4+ {[%clk 0:00:05.9]}
38... Kxf6 {[%clk 0:01:15]} 39. Qf3+ {[%clk 0:00:04.8]} 39... Ke6 {[%clk
0:01:09]} 40. Qd5+ {[%clk 0:00:04.4]} 40... Kf6 {[%clk 0:01:09.4]} 41. Qd6+
{[%clk 0:00:01.7]} 41... Kg5 {[%clk 0:01:06.8]} 42. Qe5+ {[%clk 0:00:02.2]}
42... Kg4 {[%clk 0:01:05.1]} 43. Qe6+ {[%clk 0:00:02.7]} 43... Kg3 {[%clk
0:01:04]} 44. Qd6+ {[%clk 0:00:03]} 44... Qf4 {[%clk 0:01:01.7]} 45. Qg6+ {[%clk
0:00:03.4]} 45... Kf2 {[%clk 0:00:57.6]} 46. Qc2+ {[%clk 0:00:02.9]} 46... Ke1
{[%clk 0:00:56.5]} 47. Qb1+ {[%clk 0:00:01.9]} 47... Ke2 {[%clk 0:00:54.9]} 0-1

[Event "*** Titled Tuesday Blitz"]
[Site "Chess.com"]
[Date "2020.10.20"]
[Round "3"]
[White "gmpeter008"]
[Black "Love_craft"]
[Result "1-0"]
[WhiteElo "2418"]
[BlackElo "2616"]
[TimeControl "180+1"]
[EndTime "10:28:49 PDT"]
[Termination "gmpeter008 won by resignation"]

1. e4 {[%clk 0:03:00.9]} 1... g6 {[%clk 0:02:56.5]} 2. d4 {[%clk 0:03:00.1]}
2... Bg7 {[%clk 0:02:56.6]} 3. Nf3 {[%clk 0:02:59.2]} 3... d6 {[%clk 0:02:57]}
4. Be2 {[%clk 0:02:58.2]} 4... Nf6 {[%clk 0:02:56.7]} 5. Nc3 {[%clk 0:02:57.2]}
5... O-O {[%clk 0:02:56.8]} 6. O-O {[%clk 0:02:57.3]} 6... Nbd7 {[%clk
0:02:57.2]} 7. Bf4 {[%clk 0:02:55.6]} 7... Nh5 {[%clk 0:02:48.5]} 8. Bg5 {[%clk
0:02:53.4]} 8... h6 {[%clk 0:02:47.9]} 9. Be3 {[%clk 0:02:52.1]} 9... e5 {[%clk
0:02:46.3]} 10. dxe5 {[%clk 0:02:51.4]} 10... dxe5 {[%clk 0:02:47.2]} 11. Nd2
{[%clk 0:02:48.6]} 11... Nf4 {[%clk 0:02:45.4]} 12. Bf3 {[%clk 0:02:48.6]} 12...
Nb6 {[%clk 0:02:30.6]} 13. a4 {[%clk 0:02:47.1]} 13... Be6 {[%clk 0:02:30.2]}
14. a5 {[%clk 0:02:46.8]} 14... Nc4 {[%clk 0:02:30.1]} 15. Nxc4 {[%clk
0:02:46.6]} 15... Bxc4 {[%clk 0:02:31]} 16. Qxd8 {[%clk 0:02:45.4]} 16... Rfxd8
{[%clk 0:02:17.5]} 17. Rfd1 {[%clk 0:02:46.3]} 17... a6 {[%clk 0:02:15.6]} 18.
b3 {[%clk 0:02:44.8]} 18... Be6 {[%clk 0:02:10.4]} 19. Na4 {[%clk 0:02:44.4]}
19... Rxd1+ {[%clk 0:01:44]} 20. Rxd1 {[%clk 0:02:43]} 20... Re8 {[%clk
0:01:44.9]} 21. Nc5 {[%clk 0:02:40]} 21... Bc8 {[%clk 0:01:44.9]} 22. h4 {[%clk
0:02:33.4]} 22... h5 {[%clk 0:01:25.6]} 23. g3 {[%clk 0:02:30.4]} 23... Ne6
{[%clk 0:01:25.4]} 24. Nd3 {[%clk 0:02:28.3]} 24... Nd4 {[%clk 0:01:17.4]} 25.
Bxd4 {[%clk 0:02:11.1]} 25... exd4 {[%clk 0:01:18.3]} 26. Re1 {[%clk 0:02:09.2]}
26... Be5 {[%clk 0:00:52.1]} 27. Bg2 {[%clk 0:02:04.4]} 27... c6 {[%clk
0:00:26.1]} 28. b4 {[%clk 0:01:41.1]} 28... Bc7 {[%clk 0:00:14.6]} 29. f4 {[%clk
0:01:36.4]} 29... Be6 {[%clk 0:00:11.8]} 30. Nc5 {[%clk 0:01:31.7]} 30... Bc8
{[%clk 0:00:11.6]} 31. Bf1 {[%clk 0:01:30.4]} 31... f6 {[%clk 0:00:10.6]} 32.
Bc4+ {[%clk 0:01:30.1]} 32... Kg7 {[%clk 0:00:10.8]} 33. Kg2 {[%clk 0:01:28.3]}
33... Bd6 {[%clk 0:00:10.6]} 34. Bd3 {[%clk 0:01:27]} 34... Bxc5 {[%clk
0:00:06.1]} 35. bxc5 {[%clk 0:01:27.1]} 35... Kf7 {[%clk 0:00:07]} 36. Kf2
{[%clk 0:01:22.5]} 36... Be6 {[%clk 0:00:06.4]} 37. Rb1 {[%clk 0:01:21.9]} 37...
Re7 {[%clk 0:00:06.8]} 38. Rb4 {[%clk 0:01:11.1]} 38... Rd7 {[%clk 0:00:06.9]}
39. Ke2 {[%clk 0:01:10.3]} 39... f5 {[%clk 0:00:06.1]} 40. e5 {[%clk 0:01:10.1]}
40... Ke7 {[%clk 0:00:05.2]} 41. Kd2 {[%clk 0:01:08.4]} 41... Rd5 {[%clk
0:00:04.4]} 42. Rxb7+ {[%clk 0:01:08.1]} 42... Bd7 {[%clk 0:00:04.8]} 43. e6
{[%clk 0:01:02.8]} 43... Kxe6 {[%clk 0:00:03.3]} 44. Bc4 {[%clk 0:01:03.3]}
44... Bc8 {[%clk 0:00:03.8]} 45. Rc7 {[%clk 0:01:00.5]} 45... Bd7 {[%clk
0:00:02.9]} 46. Bxd5+ {[%clk 0:01:00.1]} 46... cxd5 {[%clk 0:00:03.8]} 47. c6
{[%clk 0:00:57.5]} 47... Be8 {[%clk 0:00:04.2]} 48. Rg7 {[%clk 0:00:57.1]} 48...
Bf7 {[%clk 0:00:04]} 49. Rxf7 {[%clk 0:00:56.9]} 49... Kxf7 {[%clk 0:00:03.5]}
50. c7 {[%clk 0:00:57.8]} 1-0

[Event "*** Titled Tuesday Blitz"]
[Site "Chess.com"]
[Date "2020.10.20"]
[Round "3"]
[White "lucachess49"]
[Black "bait_or_mate"]
[Result "0-1"]
[WhiteElo "2377"]
[BlackElo "2604"]
[TimeControl "180+1"]
[EndTime "10:28:50 PDT"]
[Termination "bait_or_mate won by resignation"]

1. d4 {[%clk 0:03:00.9]} 1... Nf6 {[%clk 0:02:58.7]} 2. c4 {[%clk 0:02:58.8]}
2... e6 {[%clk 0:02:58.5]} 3. Nc3 {[%clk 0:02:59.2]} 3... Bb4 {[%clk 0:02:58.6]}
4. e3 {[%clk 0:02:59.1]} 4... O-O {[%clk 0:02:58.4]} 5. Ne2 {[%clk 0:02:58.4]}
5... Re8 {[%clk 0:02:58.4]} 6. a3 {[%clk 0:02:58.2]} 6... Bf8 {[%clk 0:02:58.4]}
7. Ng3 {[%clk 0:02:55.7]} 7... d5 {[%clk 0:02:58.1]} 8. Be2 {[%clk 0:02:54.1]}
8... c5 {[%clk 0:02:56.4]} 9. cxd5 {[%clk 0:02:52.2]} 9... Nxd5 {[%clk
0:02:55.7]} 10. O-O {[%clk 0:02:51.6]} 10... Nxc3 {[%clk 0:02:54.3]} 11. bxc3
{[%clk 0:02:45.7]} 11... Nc6 {[%clk 0:02:55.2]} 12. Bd3 {[%clk 0:02:37.9]} 12...
e5 {[%clk 0:02:48.8]} 13. d5 {[%clk 0:02:33.1]} 13... Ne7 {[%clk 0:02:43.2]} 14.
c4 {[%clk 0:02:31]} 14... g6 {[%clk 0:02:42.1]} 15. Bb2 {[%clk 0:02:24.9]} 15...
Bg7 {[%clk 0:02:41]} 16. Bc2 {[%clk 0:02:20.9]} 16... b6 {[%clk 0:02:37]} 17.
Ba4 {[%clk 0:02:16.5]} 17... Bd7 {[%clk 0:02:36.9]} 18. Ne4 {[%clk 0:02:16.9]}
18... Nc8 {[%clk 0:02:34.4]} 19. Re1 {[%clk 0:01:30.6]} 19... f5 {[%clk
0:02:33]} 20. Nc3 {[%clk 0:01:25.5]} 20... Nd6 {[%clk 0:02:33]} 21. Qb3 {[%clk
0:01:21.1]} 21... Qe7 {[%clk 0:02:26.5]} 22. Bxd7 {[%clk 0:01:10.9]} 22... Qxd7
{[%clk 0:02:27.4]} 23. a4 {[%clk 0:01:11.8]} 23... Rab8 {[%clk 0:02:26.4]} 24.
Nb5 {[%clk 0:00:51.8]} 24... Nf7 {[%clk 0:02:13]} 25. Nc3 {[%clk 0:00:17.2]}
25... e4 {[%clk 0:01:57.9]} 26. Nb5 {[%clk 0:00:15.9]} 26... Ne5 {[%clk
0:01:55.8]} 27. Bxe5 {[%clk 0:00:15.5]} 27... Bxe5 {[%clk 0:01:56.6]} 28. Rad1
{[%clk 0:00:15.1]} 28... a6 {[%clk 0:01:53.2]} 29. Nc3 {[%clk 0:00:15.2]} 29...
Bxc3 {[%clk 0:01:53.3]} 30. Qxc3 {[%clk 0:00:15.1]} 30... Qxa4 {[%clk
0:01:53.8]} 31. Ra1 {[%clk 0:00:15.3]} 31... Qd7 {[%clk 0:01:52.9]} 32. Rxa6
{[%clk 0:00:14.5]} 32... b5 {[%clk 0:01:34.3]} 33. h4 {[%clk 0:00:10]} 33... b4
{[%clk 0:01:33.9]} 34. Qb2 {[%clk 0:00:10]} 34... Qb7 {[%clk 0:01:25.2]} 35. Rd6
{[%clk 0:00:04.7]} 35... Ra8 {[%clk 0:01:20.3]} 36. h5 {[%clk 0:00:04.3]} 36...
Qe7 {[%clk 0:01:14.6]} 37. Re6 {[%clk 0:00:03.9]} 37... Qf7 {[%clk 0:01:15.1]}
38. hxg6 {[%clk 0:00:04.1]} 38... hxg6 {[%clk 0:01:14.6]} 39. Rc6 {[%clk
0:00:04.6]} 39... Rec8 {[%clk 0:01:11.4]} 40. Rxc8+ {[%clk 0:00:03.8]} 40...
Rxc8 {[%clk 0:01:12.3]} 41. Ra1 {[%clk 0:00:04.1]} 41... Kh7 {[%clk 0:00:58.4]}
42. Ra6 {[%clk 0:00:04.3]} 42... Rc7 {[%clk 0:00:54.5]} 43. Qe5 {[%clk
0:00:03.8]} 43... Rb7 {[%clk 0:00:49.4]} 44. g3 {[%clk 0:00:04.5]} 44... b3
{[%clk 0:00:49.2]} 45. Qb2 {[%clk 0:00:05.1]} 45... Qg7 {[%clk 0:00:47.8]} 46.
Kg2 {[%clk 0:00:05.7]} 0-1

[Event "*** Titled Tuesday Blitz"]
[Site "Chess.com"]
[Date "2020.10.20"]
[Round "3"]
[White "alexwinter25"]
[Black "WIDBIFS"]
[Result "0-1"]
[WhiteElo "2372"]
[BlackElo "2739"]
[TimeControl "180+1"]
[EndTime "10:28:53 PDT"]
[Termination "WIDBIFS won on time"]

1. e4 {[%clk 0:03:00.9]} 1... c6 {[%clk 0:02:59.8]} 2. d4 {[%clk 0:03:00.4]}
2... d5 {[%clk 0:03:00.7]} 3. exd5 {[%clk 0:03:01.1]} 3... cxd5 {[%clk
0:03:01.1]} 4. c4 {[%clk 0:03:02]} 4... Nf6 {[%clk 0:02:59.2]} 5. Nc3 {[%clk
0:03:02.4]} 5... Nc6 {[%clk 0:02:59.9]} 6. Nf3 {[%clk 0:03:01.5]} 6... a6 {[%clk
0:02:58.7]} 7. cxd5 {[%clk 0:02:57.3]} 7... Nxd5 {[%clk 0:02:58.3]} 8. Bc4
{[%clk 0:02:57.9]} 8... Be6 {[%clk 0:02:58.9]} 9. Qe2 {[%clk 0:02:47]} 9... Nxc3
{[%clk 0:02:50.1]} 10. bxc3 {[%clk 0:02:47.9]} 10... Bxc4 {[%clk 0:02:50.7]} 11.
Qxc4 {[%clk 0:02:48]} 11... e6 {[%clk 0:02:51.1]} 12. O-O {[%clk 0:02:29.7]}
12... Be7 {[%clk 0:02:49.6]} 13. a4 {[%clk 0:02:19.8]} 13... Rc8 {[%clk
0:02:47]} 14. Qd3 {[%clk 0:02:04.5]} 14... O-O {[%clk 0:02:40.2]} 15. Rb1 {[%clk
0:02:01.3]} 15... Qc7 {[%clk 0:02:34.8]} 16. c4 {[%clk 0:01:50.9]} 16... Nb4
{[%clk 0:02:31.8]} 17. Qe4 {[%clk 0:01:46.2]} 17... Qxc4 {[%clk 0:02:13.6]} 18.
Qxb7 {[%clk 0:01:40.7]} 18... Nd5 {[%clk 0:02:03.2]} 19. Bg5 {[%clk 0:01:10.2]}
19... Bxg5 {[%clk 0:01:51.7]} 20. Nxg5 {[%clk 0:01:11.1]} 20... Nc3 {[%clk
0:01:52.1]} 21. Ra1 {[%clk 0:00:59]} 21... Rc7 {[%clk 0:01:34]} 22. Qb6 {[%clk
0:00:48.5]} 22... Nd5 {[%clk 0:01:31.3]} 23. Qa5 {[%clk 0:00:43.4]} 23... Rc6
{[%clk 0:01:21.4]} 24. Nf3 {[%clk 0:00:42.2]} 24... Qc3 {[%clk 0:00:50.7]} 25.
Qxc3 {[%clk 0:00:32.1]} 25... Nxc3 {[%clk 0:00:51.6]} 26. g3 {[%clk 0:00:27]}
26... Rc4 {[%clk 0:00:43.6]} 27. a5 {[%clk 0:00:20.6]} 27... f6 {[%clk
0:00:32.2]} 28. Kg2 {[%clk 0:00:19.3]} 28... Rfc8 {[%clk 0:00:30.1]} 29. Rfc1
{[%clk 0:00:18.4]} 29... Nb5 {[%clk 0:00:30]} 30. Rxc4 {[%clk 0:00:18]} 30...
Rxc4 {[%clk 0:00:30.9]} 31. Rd1 {[%clk 0:00:17.9]} 31... Kf7 {[%clk 0:00:26.1]}
32. d5 {[%clk 0:00:18.1]} 32... e5 {[%clk 0:00:26.6]} 33. d6 {[%clk 0:00:11.2]}
33... Ke8 {[%clk 0:00:26.6]} 34. d7+ {[%clk 0:00:10.9]} 34... Kd8 {[%clk
0:00:26.8]} 35. Nh4 {[%clk 0:00:09.3]} 35... g6 {[%clk 0:00:24.7]} 36. Rd5
{[%clk 0:00:09.2]} 36... Rd4 {[%clk 0:00:21.6]} 0-1

[Event "*** Titled Tuesday Blitz"]
[Site "Chess.com"]
[Date "2020.10.20"]
[Round "3"]
[White "TigranMukhutdinov"]
[Black "avantage_ru"]
[Result "0-1"]
[WhiteElo "2519"]
[BlackElo "2797"]
[TimeControl "180+1"]
[EndTime "10:28:54 PDT"]
[Termination "avantage_ru won by resignation"]

1. Nf3 {[%clk 0:03:00.9]} 1... h6 {[%clk 0:02:59.1]} 2. g3 {[%clk 0:02:56.7]}
2... g5 {[%clk 0:02:59]} 3. Bg2 {[%clk 0:02:56.5]} 3... Bg7 {[%clk 0:02:59]} 4.
d4 {[%clk 0:02:55.8]} 4... d6 {[%clk 0:02:55.2]} 5. c3 {[%clk 0:02:46]} 5... f5
{[%clk 0:02:45.4]} 6. O-O {[%clk 0:02:42.2]} 6... Nf6 {[%clk 0:02:44.9]} 7. Nbd2
{[%clk 0:02:40.4]} 7... O-O {[%clk 0:02:41.5]} 8. Qc2 {[%clk 0:02:40.4]} 8...
Nc6 {[%clk 0:02:33.3]} 9. e4 {[%clk 0:02:36.5]} 9... f4 {[%clk 0:02:32.8]} 10.
gxf4 {[%clk 0:02:19.2]} 10... gxf4 {[%clk 0:02:30.7]} 11. Nc4 {[%clk 0:02:17.2]}
11... Nh7 {[%clk 0:02:19.9]} 12. d5 {[%clk 0:02:08.4]} 12... Ne5 {[%clk
0:02:13.5]} 13. Ncxe5 {[%clk 0:02:06.6]} 13... dxe5 {[%clk 0:02:13.3]} 14. c4
{[%clk 0:02:00.2]} 14... Bg4 {[%clk 0:02:05.6]} 15. h3 {[%clk 0:01:52]} 15...
Bh5 {[%clk 0:02:00.2]} 16. b4 {[%clk 0:01:45.5]} 16... Qd7 {[%clk 0:01:58.3]}
17. Qb3 {[%clk 0:01:28.7]} 17... a5 {[%clk 0:01:43.6]} 18. Bb2 {[%clk
0:01:22.5]} 18... Bxf3 {[%clk 0:01:42.4]} 19. Qxf3 {[%clk 0:01:20.7]} 19... Ng5
{[%clk 0:01:41.8]} 20. Qg4 {[%clk 0:01:01.4]} 20... Qxg4 {[%clk 0:01:40.6]} 21.
hxg4 {[%clk 0:01:02.3]} 21... f3 {[%clk 0:01:40.6]} 22. Bh1 {[%clk 0:01:02.9]}
22... axb4 {[%clk 0:01:40.6]} 23. Rfe1 {[%clk 0:01:00.8]} 23... Rf4 {[%clk
0:01:37.7]} 24. Bc1 {[%clk 0:00:57]} 24... Rxg4+ {[%clk 0:01:36.8]} 25. Kh2
{[%clk 0:00:57.3]} 25... Rf8 {[%clk 0:01:29.3]} 26. Bxg5 {[%clk 0:00:52.4]}
26... hxg5 {[%clk 0:01:24.1]} 27. Re3 {[%clk 0:00:52.2]} 27... Rgf4 {[%clk
0:01:19.8]} 28. Kg3 {[%clk 0:00:50.9]} 28... g4 {[%clk 0:01:18.8]} 29. Rb1
{[%clk 0:00:51.2]} 29... Bf6 {[%clk 0:01:14.7]} 30. Rxb4 {[%clk 0:00:50.2]}
30... Kg7 {[%clk 0:01:13.3]} 31. Rxb7 {[%clk 0:00:44.6]} 31... Rh8 {[%clk
0:01:12.5]} 32. Bxf3 {[%clk 0:00:44.8]} 32... Bh4+ {[%clk 0:01:11.8]} 33. Kg2
{[%clk 0:00:44.5]} 33... gxf3+ {[%clk 0:01:10.6]} 34. Rxf3 {[%clk 0:00:44.7]}
34... Rxe4 {[%clk 0:01:05.8]} 35. Rxc7 {[%clk 0:00:44.3]} 35... Kg6 {[%clk
0:01:04.2]} 36. c5 {[%clk 0:00:42.6]} 36... Rd4 {[%clk 0:01:00.1]} 37. d6 {[%clk
0:00:33.9]} 37... exd6 {[%clk 0:00:57.5]} 38. Rc6 {[%clk 0:00:30]} 38... Rd8
{[%clk 0:00:55]} 39. a4 {[%clk 0:00:28.9]} 39... Rxa4 {[%clk 0:00:42.4]} 40.
cxd6 {[%clk 0:00:27.8]} 40... Rd7 {[%clk 0:00:41.2]} 41. Rc7 {[%clk 0:00:26.2]}
41... Rxd6 {[%clk 0:00:40.4]} 42. Rff7 {[%clk 0:00:26.4]} 42... Bf6 {[%clk
0:00:39.8]} 43. Rf8 {[%clk 0:00:24.6]} 43... Rg4+ {[%clk 0:00:39.2]} 44. Kf3
{[%clk 0:00:24.4]} 44... Rf4+ {[%clk 0:00:38.9]} 45. Kg2 {[%clk 0:00:24.4]}
45... Rd2 {[%clk 0:00:36.2]} 46. Rg8+ {[%clk 0:00:20.2]} 46... Kf5 {[%clk
0:00:35.8]} 0-1

[Event "*** Titled Tuesday Blitz"]
[Site "Chess.com"]
[Date "2020.10.20"]
[Round "3"]
[White "CM_rui"]
[Black "Chernobay_Artem"]
[Result "0-1"]
[WhiteElo "2369"]
[BlackElo "2576"]
[TimeControl "180+1"]
[EndTime "10:28:54 PDT"]
[Termination "Chernobay_Artem won by checkmate"]

1. e4 {[%clk 0:03:00.9]} 1... c5 {[%clk 0:02:58.5]} 2. Nf3 {[%clk 0:03:01.2]}
2... d6 {[%clk 0:02:57.8]} 3. c4 {[%clk 0:03:00.5]} 3... Nc6 {[%clk 0:02:51.8]}
4. d4 {[%clk 0:03:00.3]} 4... cxd4 {[%clk 0:02:51.9]} 5. Nxd4 {[%clk 0:03:01.2]}
5... Nf6 {[%clk 0:02:48.9]} 6. Nc3 {[%clk 0:03:00.5]} 6... g6 {[%clk 0:02:47]}
7. Be2 {[%clk 0:02:59.9]} 7... Bg7 {[%clk 0:02:46.3]} 8. Be3 {[%clk 0:03:00.3]}
8... O-O {[%clk 0:02:42]} 9. O-O {[%clk 0:03:00]} 9... Bd7 {[%clk 0:02:34.4]}
10. Rc1 {[%clk 0:03:00]} 10... Nxd4 {[%clk 0:02:30.2]} 11. Bxd4 {[%clk
0:03:00.9]} 11... Bc6 {[%clk 0:02:31]} 12. f3 {[%clk 0:03:00.8]} 12... a5 {[%clk
0:02:30.4]} 13. Qd2 {[%clk 0:03:00.1]} 13... a4 {[%clk 0:02:29.9]} 14. Kh1
{[%clk 0:02:58.1]} 14... Qa5 {[%clk 0:02:27.6]} 15. Rfd1 {[%clk 0:02:51.7]}
15... Nd7 {[%clk 0:02:22.3]} 16. Bxg7 {[%clk 0:02:51.4]} 16... Kxg7 {[%clk
0:02:23.2]} 17. Qd4+ {[%clk 0:02:51.7]} 17... Kg8 {[%clk 0:02:20.4]} 18. f4
{[%clk 0:02:47]} 18... Rac8 {[%clk 0:02:05]} 19. Nd5 {[%clk 0:02:43]} 19... Bxd5
{[%clk 0:01:59.9]} 20. exd5 {[%clk 0:02:43.9]} 20... Qb4 {[%clk 0:01:49.7]} 21.
Bg4 {[%clk 0:02:28.7]} 21... Rc7 {[%clk 0:01:35.1]} 22. f5 {[%clk 0:02:16.3]}
22... Ne5 {[%clk 0:01:33.3]} 23. fxg6 {[%clk 0:02:16.1]} 23... hxg6 {[%clk
0:01:29.5]} 24. Be2 {[%clk 0:02:11.1]} 24... Rfc8 {[%clk 0:01:28.7]} 25. Rf1
{[%clk 0:01:59.3]} 25... b5 {[%clk 0:01:23.1]} 26. Rc3 {[%clk 0:01:50]} 26...
Qxb2 {[%clk 0:01:20]} 27. Qe3 {[%clk 0:01:47.2]} 27... b4 {[%clk 0:01:14.2]} 28.
Rcc1 {[%clk 0:01:46.7]} 28... Qxa2 {[%clk 0:01:11.2]} 29. h4 {[%clk 0:01:38]}
29... b3 {[%clk 0:00:55.9]} 30. h5 {[%clk 0:01:33.9]} 30... b2 {[%clk
0:00:55.6]} 31. Rce1 {[%clk 0:01:28.1]} 31... Qb3 {[%clk 0:00:53.4]} 32. Qh6
{[%clk 0:01:25.5]} 32... Qg3 {[%clk 0:00:37.9]} 33. Rd1 {[%clk 0:01:00.6]} 33...
Qh4+ {[%clk 0:00:31.5]} 34. Kg1 {[%clk 0:01:00.4]} 34... a3 {[%clk 0:00:28.8]}
35. Rxf7 {[%clk 0:00:52.1]} 35... Nxf7 {[%clk 0:00:28.1]} 36. Qxg6+ {[%clk
0:00:50.1]} 36... Kf8 {[%clk 0:00:28]} 37. Rf1 {[%clk 0:00:48.7]} 37... Qd4+
{[%clk 0:00:28.6]} 38. Kh1 {[%clk 0:00:47]} 38... Qg7 {[%clk 0:00:28.4]} 39. Qf5
{[%clk 0:00:44.1]} 39... a2 {[%clk 0:00:26.5]} 40. h6 {[%clk 0:00:36.1]} 40...
Qxh6+ {[%clk 0:00:25.4]} 41. Bh5 {[%clk 0:00:36.5]} 41... Qf6 {[%clk 0:00:20.3]}
42. Qh7 {[%clk 0:00:19]} 42... Qxf1+ {[%clk 0:00:19.4]} 43. Kh2 {[%clk
0:00:19.9]} 43... Qf4+ {[%clk 0:00:18.9]} 44. Kh3 {[%clk 0:00:19.4]} 44... Ng5#
{[%clk 0:00:17.2]} 0-1

[Event "*** Titled Tuesday Blitz"]
[Site "Chess.com"]
[Date "2020.10.20"]
[Round "3"]
[White "regular_legs"]
[Black "jlucasvf"]
[Result "0-1"]
[WhiteElo "2517"]
[BlackElo "2793"]
[TimeControl "180+1"]
[EndTime "10:28:56 PDT"]
[Termination "jlucasvf won on time"]

1. d4 {[%clk 0:02:58.9]} 1... g5 {[%clk 0:03:00.9]} 2. Bxg5 {[%clk 0:02:57.4]}
2... c5 {[%clk 0:02:59.1]} 3. d5 {[%clk 0:02:54]} 3... Bg7 {[%clk 0:02:57]} 4.
c3 {[%clk 0:02:53.4]} 4... Nf6 {[%clk 0:02:55.7]} 5. g3 {[%clk 0:02:30]} 5...
Qb6 {[%clk 0:02:53.3]} 6. Bc1 {[%clk 0:02:28.2]} 6... d6 {[%clk 0:02:49.5]} 7.
Bg2 {[%clk 0:02:27.6]} 7... Bf5 {[%clk 0:02:48.6]} 8. Nh3 {[%clk 0:02:24.1]}
8... h5 {[%clk 0:02:43.6]} 9. Na3 {[%clk 0:02:19.9]} 9... h4 {[%clk 0:02:42.9]}
10. Nf4 {[%clk 0:02:16.9]} 10... Nbd7 {[%clk 0:02:41]} 11. Qa4 {[%clk
0:01:50.8]} 11... a6 {[%clk 0:02:13.5]} 12. Nc4 {[%clk 0:01:49.4]} 12... Qd8
{[%clk 0:02:13]} 13. Ne3 {[%clk 0:01:49.1]} 13... b5 {[%clk 0:02:12.8]} 14. Qd1
{[%clk 0:01:41.8]} 14... Bh7 {[%clk 0:02:09.5]} 15. O-O {[%clk 0:01:41.3]} 15...
Ne5 {[%clk 0:02:06.4]} 16. a4 {[%clk 0:01:38.5]} 16... b4 {[%clk 0:01:59.6]} 17.
c4 {[%clk 0:01:32.6]} 17... Qd7 {[%clk 0:01:57.4]} 18. b3 {[%clk 0:01:31.4]}
18... O-O-O {[%clk 0:01:56.5]} 19. Bh3 {[%clk 0:01:18.5]} 19... Nfg4 {[%clk
0:01:41]} 20. Bb2 {[%clk 0:01:10.4]} 20... f5 {[%clk 0:01:33.2]} 21. Ne6 {[%clk
0:00:52.2]} 21... Bf6 {[%clk 0:01:33.6]} 22. Nxg4 {[%clk 0:00:42.8]} 22... fxg4
{[%clk 0:01:29.7]} 23. Bg2 {[%clk 0:00:25.6]} 23... Rdg8 {[%clk 0:01:26.8]} 24.
Qd2 {[%clk 0:00:19]} 24... Bg6 {[%clk 0:01:13.4]} 25. Rad1 {[%clk 0:00:15.8]}
25... Rh7 {[%clk 0:01:12.2]} 26. Qe3 {[%clk 0:00:15.6]} 26... Rh5 {[%clk
0:00:53.5]} 27. Be4 {[%clk 0:00:12.9]} 27... Bxe4 {[%clk 0:00:43.3]} 28. Qxe4
{[%clk 0:00:13.8]} 28... Rgh8 {[%clk 0:00:44]} 29. Bxe5 {[%clk 0:00:13.4]} 29...
Bxe5 {[%clk 0:00:44]} 30. Qxg4 {[%clk 0:00:12.3]} 30... hxg3 {[%clk 0:00:44.5]}
31. hxg3 {[%clk 0:00:12.4]} 31... Kb8 {[%clk 0:00:39.1]} 32. Kg2 {[%clk
0:00:10.8]} 32... Rh2+ {[%clk 0:00:38.8]} 33. Kf3 {[%clk 0:00:10.8]} 33... Qe8
{[%clk 0:00:39.6]} 34. Ke4 {[%clk 0:00:09.6]} 34... Rg8 {[%clk 0:00:34.2]} 35.
Qf5 {[%clk 0:00:09.5]} 35... Rh5 {[%clk 0:00:33.9]} 36. Qf3 {[%clk 0:00:09.2]}
36... Qg6+ {[%clk 0:00:34]} 37. Ke3 {[%clk 0:00:09.1]} 37... Bc3 {[%clk
0:00:29]} 38. Nf4 {[%clk 0:00:06.6]} 38... Re5+ {[%clk 0:00:28]} 0-1